bitfinex-derivatives/quotes_SOLF0:USTF0_20241025
["timestamp","ask_amount","ask_price","bid_price","bid_amount"]
[1729853111368,7.9772258,173.52,173.5,2.8836]
[1729853111570,7.9772258,173.52,173.51,5.29540638]
[1729853111766,7.9772258,173.52,173.51,9.04601301]
[1729853112969,7.9772258,173.52,173.51,5.29540638]
[1729853113175,7.9772258,173.52,173.51,9.04601301]
[1729853114074,8.2802,173.55,173.51,9.04601301]
[1729853114273,8.2802,173.55,173.52,9.04601301]
[1729853114274,7.9772258,173.53,173.52,9.04601301]
[1729853114781,7.9772258,173.53,173.52,3.75060663]
[1729853115079,7.9772258,173.55,173.53,2.8831]
[1729853115279,2.8829,173.55,173.54,3.75060663]
[1729853115479,7.9772258,173.55,173.54,3.75060663]
[1729853115679,7.9772258,173.55,173.54,1.44254101]
[1729853116876,2.8827,173.56,173.54,3.75044178]
[1729853117069,2.8827,173.56,173.55,1.44254101]
[1729853117274,10.8599258,173.56,173.55,1.44254101]
[1729853122474,2.8831,173.54,173.5,3.35483183]
[1729853122674,7.9772258,173.53,173.51,7.59542999]
[1729853122880,7.9772258,173.53,173.5,2.8836]
[1729853122881,7.9772258,173.53,173.52,7.59542999]
[1729853123674,4.2,173.55,173.48,7.9772258]
[1729853123984,4.2,173.55,173.52,2.8833]
[1729853123985,7.9772258,173.53,173.52,2.8833]
[1729853124184,7.9772258,173.53,173.52,10.47920027]
[1729853127286,7.9772258,173.53,173.52,2.8833]
[1729853127487,7.9772258,173.53,173.52,10.47381213]
[1729853128090,7.9772258,173.53,173.52,5.19121054]
[1729853128284,7.9772258,173.53,173.52,10.47369399]
[1729853130091,7.9772258,173.53,173.52,18.9266694]
[1729853130790,7.9772258,173.53,173.52,22.89912353]
[1729853131992,5.4914,173.58,173.52,20.48636515]
[1729853132191,62.28,173.67,173.52,20.48636515]
[1729853132192,2.5353,173.64,173.53,16.51391102]
[1729853132398,7.9772258,173.58,173.54,8.92351703]
[1729853132594,4.2,173.63,173.55,17.70791299]
[1729853132795,7.9772258,173.57,173.56,16.0433694]
[1729853133386,7.9772258,173.57,173.56,7.59039399]
[1729853134488,7.9772258,173.57,173.56,3.74998432]
[1729853134689,7.9772258,173.57,173.56,9.02896138]
[1729853136194,4.2,173.59,173.56,9.02896138]
[1729853136393,7.9772258,173.57,173.56,2.8827]
[1729853136593,7.9772258,173.57,173.56,11.90999573]
[1729853138100,7.9772258,173.57,173.56,2.8827]
[1729853138402,7.9772258,173.57,173.56,11.90957504]
[1729853138794,4.2,173.59,173.56,9.02687504]
[1729853138994,4.2,173.59,173.58,2.8823]
[1729853139195,12.1772258,173.59,173.58,4.32434416]
[1729853139398,12.1772258,173.59,173.58,1.44204416]
[1729853139601,4.2,173.59,173.58,4.32434416]
[1729853139796,12.1772258,173.59,173.58,9.59971833]
[1729853140196,12.1772258,173.59,173.58,4.32434416]
[1729853140697,12.1772258,173.59,173.58,1.44204416]
[1729853141598,12.1772258,173.59,173.55,2.8827]
[1729853141798,7.9772258,173.56,173.55,2.8827]
[1729853142005,7.9772258,173.56,173.55,20.3474736]
[1729853143105,7.9772258,173.56,173.55,17.4647736]
[1729853144300,7.9772258,173.56,173.55,20.3475736]
[1729853144500,4.2,173.59,173.55,17.4647736]
[1729853144702,4.2,173.59,173.56,5.2751481]
[1729853144703,7.9772258,173.57,173.56,5.2751481]
[1729853144904,7.9772258,173.57,173.56,9.02439368]
[1729853145207,7.9772258,173.57,173.56,3.74924558]
[1729853145400,7.9772258,173.57,173.56,17.46480432]
[1729853145703,7.9772258,173.57,173.56,2.8825]
[1729853145921,7.9772258,173.57,173.56,11.90654681]
[1729853146603,4.2,173.59,173.56,11.90654681]
[1729853146804,7.9772258,173.57,173.56,2.8825]
[1729853147005,7.9772258,173.57,173.56,11.90611843]
[1729853149022,7.9772258,173.57,173.56,2.8825]
[1729853149509,7.9772258,173.57,173.56,11.90557428]
[1729853150102,7.9772258,173.57,173.56,6.6317439]
[1729853150301,7.9772258,173.57,173.56,11.90508495]
[1729853151808,7.9772258,173.57,173.56,20.33954701]
[1729853152311,7.9772258,173.57,173.56,11.90508495]
[1729853152712,7.9772258,173.57,173.56,6.6317439]
[1729853152906,7.9772258,173.57,173.56,11.90371633]
[1729853153213,7.9772258,173.57,173.56,9.59648931]
[1729853154104,7.9772258,173.57,173.56,1.44201688]
[1729853156304,7.9772258,173.57,173.51,4.2]
[1729853156508,7.9772258,173.54,173.52,21.42367405]
[1729853156811,7.9772258,173.54,173.51,4.2]
[1729853156812,7.9772258,173.54,173.53,17.45889185]
[1729853157506,7.9772258,173.54,173.53,9.02239438]
[1729853157707,7.9772258,173.54,173.53,17.45830139]
[1729853158402,7.9772258,173.54,173.53,20.34130139]
[1729853159417,7.9772258,173.54,173.53,17.45830139]
[1729853159616,7.9772258,173.54,173.53,1.44214748]
[1729853159808,7.9772258,173.54,173.52,2.8832]
[1729853160120,7.9772258,173.53,173.52,2.8832]
[1729853160315,7.9772258,173.53,173.52,9.02396677]
[1729853160906,10.8604258,173.53,173.52,1.44228142]
[1729853165743,10.8604258,173.53,173.48,2.884]
[1729853165923,10.8604258,173.53,173.49,18.0405733]
[1729853165924,7.9772258,173.5,173.49,18.0405733]
[1729853166119,7.9772258,173.5,173.49,20.34835519]
[1729853168218,7.9772258,173.5,173.49,24.31612788]
[1729853168611,2.8832,173.53,173.49,24.31612788]
[1729853168612,7.9772258,173.51,173.49,24.31612788]
[1729853168817,7.9772258,173.51,173.5,20.34825519]
[1729853169216,2.883,173.55,173.5,17.46455519]
[1729853169522,7.9772258,173.53,173.51,20.35208252]
[1729853169720,7.9772258,173.53,173.52,9.02642067]
[1729853172919,7.9772258,173.53,173.51,2.8835]
[1729853173124,7.9772258,173.52,173.51,2.8835]
[1729853173318,7.9772258,173.52,173.51,11.90932796]
[1729853174019,7.9772258,173.52,173.51,9.02582796]
[1729853175219,10.8605258,173.52,173.51,6.71813673]
[1729853175419,10.8605258,173.52,173.51,1.44230715]
[1729853176119,10.8605258,173.52,173.44,5.4776]
[1729853176120,10.8605258,173.52,173.47,2.884]
[1729853176320,7.9772258,173.48,173.47,2.884]
[1729853176515,7.9772258,173.48,173.47,10.47146753]
[1729853176726,7.9772258,173.48,173.47,18.91839465]
[1729853177224,7.9772258,173.48,173.47,10.47146753]
[1729853179317,7.9772258,173.48,173.47,8.16332945]
[1729853179825,7.9772258,173.48,173.47,10.47161051]
[1729853180123,7.9772258,173.48,173.47,7.58761051]
[1729853180420,7.9772258,173.48,173.4,13.4719258]
[1729853180625,7.9772258,173.46,173.45,2.8844]
[1729853180826,7.9772258,173.46,173.45,10.47208879]
[1729853182219,7.9772258,173.46,173.45,8.16361007]
[1729853182615,7.9772258,173.46,173.45,5.27921007]
[1729853183523,7.9772258,173.46,173.4,9.2719258]
[1729853183718,7.9772258,173.46,173.43,2.8847]
[1729853183922,7.9772258,173.46,173.44,7.58565183]
[1729853184121,7.9772258,173.46,173.45,5.27714806]
[1729853184327,7.9772258,173.46,173.41,3.96759313]
[1729853184520,7.9772258,173.46,173.4,9.2719258]
[1729853184521,7.9772258,173.44,173.42,19.99434246]
[1729853184720,7.9772258,173.44,173.43,18.91154933]
[1729853185024,7.9772258,173.44,173.43,16.02674933]
[1729853185222,7.9772258,173.44,173.43,7.58478011]
[1729853185420,7.9772258,173.44,173.35,4.2]
[1729853185619,7.9772258,173.39,173.36,19.99237921]
[1729853185818,7.9772258,173.39,173.37,19.99237921]
[1729853186017,7.9772258,173.39,173.35,4.2]
[1729853186018,7.9772258,173.39,173.38,19.99237921]
[1729853187225,7.9772258,173.39,173.38,2.8857]
[1729853187426,7.9772258,173.39,173.38,14.43375655]
[1729853187621,7.9772258,173.42,173.38,19.98594721]
[1729853187816,7.9772258,173.42,173.39,19.98594721]
[1729853188017,7.9772258,173.42,173.4,16.02038729]
[1729853188223,7.9772258,173.43,173.41,9.0254485]
[1729853188430,7.9772258,173.43,173.42,9.0254485]
[1729853188829,7.9772258,173.43,173.42,11.9104485]
[1729853189727,7.9772258,173.43,173.42,2.885]
[1729853190223,2.84332166,173.5,173.4,7.9772258]
[1729853190434,4.2,173.49,173.46,2.8842]
[1729853190625,7.9772258,173.47,173.46,2.8842]
[1729853191135,7.9772258,173.47,173.46,4.32688758]
[1729853191929,4.2,173.51,173.48,2.8839]
[1729853192133,7.9772258,173.49,173.48,2.8839]
[1729853193532,7.9772258,173.49,173.46,2.8842]
[1729853193829,7.9772258,173.47,173.39,7.966]
[1729853194029,7.9772258,173.42,173.41,2.8852]
[1729853194223,7.9772258,173.42,173.41,24.27886394]
[1729853195031,7.9772258,173.42,173.41,20.32096877]
[1729853195417,7.9772258,173.42,173.41,11.89954707]
[1729853196255,7.9772258,173.42,173.41,2.8852]
[1729853196425,7.9772258,173.42,173.41,4.32815342]
[1729853196628,7.9772258,173.42,173.41,6.70667535]
[1729853196936,7.9772258,173.42,173.41,9.01529038]
[1729853197836,7.9772258,173.42,173.41,17.43221876]
[1729853198229,7.9772258,173.42,173.41,11.90049038]
[1729853198633,7.9772258,173.42,173.41,6.63676845]
[1729853198835,7.9772258,173.42,173.41,11.89735641]
[1729853199333,7.9772258,173.42,173.41,20.31212213]
[1729853199732,4.2,173.48,173.46,2.8842]
[1729853199928,7.9772258,173.47,173.46,2.8842]
[1729853202734,7.9772258,173.47,173.4,8.41603034]
[1729853202933,7.9772258,173.41,173.39,3.766]
[1729853203139,7.9772258,173.41,173.4,17.42539609]
[1729853203534,7.9772258,173.41,173.4,21.37987032]
[1729853204337,7.9772258,173.41,173.4,24.26517032]
[1729853205032,7.9772258,173.41,173.4,20.31069609]
[1729853205240,4.2,173.46,173.42,2.885]
[1729853205440,7.9772258,173.43,173.42,2.885]
[1729853205638,7.9772258,173.43,173.42,4.32792857]
[1729853206043,7.9772258,173.43,173.42,2.885]
[1729853212742,4.2,173.46,173.4,2.30879117]
[1729853212945,2.94652799,173.51,173.41,9.00879123]
[1729853213140,7.9772258,173.44,173.42,17.41930372]
[1729853213455,7.9772258,173.44,173.43,9.58505932]
[1729853213643,7.9772258,173.44,173.43,11.89343925]
[1729853214249,4.2,173.48,173.41,4.2]
[1729853214446,4.2,173.48,173.46,2.8842]
[1729853214642,7.9772258,173.47,173.46,2.8842]
[1729853218844,7.9772258,173.47,173.44,2.8846]
[1729853219041,7.9772258,173.45,173.44,2.8846]
[1729853219244,7.9772258,173.45,173.44,9.58904197]
[1729853220348,7.9772258,173.45,173.44,6.70444197]
[1729853220855,7.9772258,173.45,173.44,1.44277257]
[1729853221162,7.9772258,173.45,173.41,4.2]
[1729853221354,7.9772258,173.43,173.42,2.885]
[1729853221653,7.9772258,173.43,173.42,11.90264562]
[1729853222050,7.9772258,173.43,173.42,20.32871558]
[1729853223345,7.9772258,173.43,173.42,24.29022884]
[1729853224247,7.9772258,173.43,173.42,20.32871558]
[1729853228652,7.9772258,173.43,173.42,12.12434296]
[1729853228955,7.9772258,173.43,173.42,20.34829026]
[1729853229759,7.9772258,173.43,173.42,11.91029301]
[1729853229953,7.9772258,173.43,173.42,11.91159622]
[1729853230863,7.9772258,173.43,173.42,9.60295331]
[1729853232167,2.4775,173.47,173.42,9.02679953]
[1729853232460,2.4775,173.47,173.44,2.8847]
[1729853233059,2.4775,173.47,173.45,1.44293764]
[1729853233256,2.4775,173.47,173.44,2.8847]
[1729853233458,2.4775,173.47,173.45,1.44293782]
[1729853233657,7.9772258,173.46,173.44,2.8847]
[1729853233863,7.9772258,173.46,173.45,1.4429389]
[1729853234063,7.9772258,173.46,173.44,2.8847]
[1729853234465,5.3617,173.47,173.44,2.8847]
[1729853234665,2.4775,173.47,173.38,12.1772258]
[1729853234863,4.2,173.48,173.45,2.8844]
[1729853235065,4.2,173.48,173.46,5.27514034]
[1729853235263,4.2,173.48,173.38,12.1772258]
[1729853235462,7.9772258,173.44,173.39,19.98933904]
[1729853235660,7.9772258,173.44,173.4,19.98933904]
[1729853235862,7.9772258,173.44,173.41,19.98933904]
[1729853236072,7.9772258,173.44,173.42,16.02296887]
[1729853236274,7.9772258,173.44,173.43,22.87413904]
[1729853236471,7.9772258,173.44,173.43,22.874285]
[1729853237075,7.9772258,173.44,173.43,18.90773601]
[1729853237373,7.9772258,173.44,173.43,22.87518953]
[1729853238670,4.2,173.48,173.43,19.99038953]
[1729853238875,4.2,173.48,173.45,2.8845]
[1729853239072,7.9772258,173.46,173.45,2.8845]
[1729853239269,7.9772258,173.46,173.45,10.47111331]
[1729853239870,7.9772258,173.46,173.45,18.9160811]
[1729853240176,7.9772258,173.46,173.45,18.91564294]
[1729853241877,7.9772258,173.46,173.45,16.03114294]
[1729853242077,7.9772258,173.46,173.35,2.5364]
[1729853242281,7.9772258,173.4,173.36,8.17298562]
[1729853242479,4.2,173.48,173.37,3.97298562]
[1729853242779,7.9772258,173.4,173.38,3.97298562]
[1729853243074,7.9772258,173.4,173.39,3.97298562]
[1729853244372,7.9772258,173.4,173.39,6.85848562]
[1729853246074,7.9772258,173.4,173.39,8.30153381]
[1729853247375,2.8845,173.45,173.41,2.8852]
[1729853247376,7.9772258,173.42,173.41,2.8852]
[1729853247576,7.9772258,173.42,173.41,8.30123381]
[1729853251079,7.9772258,173.42,173.41,6.85818562]
[1729853251282,7.9772258,173.42,173.41,8.30117983]
[1729853251875,7.9772258,173.42,173.39,2.8854]
[1729853252072,7.9772258,173.4,173.39,2.8854]
[1729853254088,7.9772258,173.4,173.39,8.00862945]
[1729853254785,7.9772258,173.4,173.39,2.8854]
[1729853254981,7.9772258,173.4,173.39,8.00824991]
[1729853264002,7.9772258,173.4,173.39,13.37048261]
[1729853264394,3.7193,173.47,173.39,10.48508261]
[1729853264598,3.7193,173.47,173.34,10.85533603]
[1729853264599,7.9772258,173.42,173.4,10.48508261]
[1729853264893,7.9772258,173.42,173.41,10.48508261]
[1729853265396,7.9772258,173.42,173.41,13.37028261]
[1729853265794,7.9772258,173.42,173.41,8.00804991]
[1729853265998,7.9772258,173.42,173.41,9.45098079]
[1729853266204,7.9772258,173.42,173.41,13.36811578]
[1729853269404,7.9772258,173.42,173.41,8.24526587]
[1729853269612,7.9772258,173.42,173.41,13.36981793]
[1729853269855,7.9772258,173.42,173.41,10.48461793]
[1729853273016,7.9772258,173.42,173.4,2.8852]
[1729853273212,7.9772258,173.42,173.41,10.49940159]
[1729853276515,7.9772258,173.42,173.41,6.57322368]
[1729853276709,7.9772258,173.42,173.32,1.2996]
[1729853276710,15.0623258,173.42,173.38,2.8856]
[1729853277020,7.9772258,173.39,173.33,4.2]
[1729853277215,7.0851,173.42,173.39,2.8855]
[1729853278329,7.9772258,173.4,173.38,2.8856]
[1729853278527,7.9772258,173.39,173.32,5.4996]
[1729853278728,4.2,173.42,173.32,5.4996]
[1729853278729,7.9772258,173.36,173.32,5.4996]
[1729853278927,7.9772258,173.36,173.35,2.8862]
[1729853280150,4.2,173.42,173.33,7.9772258]
[1729853280429,7.9772258,173.39,173.33,7.9772258]
[1729853280718,7.9772258,173.39,173.38,2.8857]
[1729853281426,3.7193,173.47,173.34,10.81484219]
[1729853281614,4.18,173.46,173.35,7.9772258]
[1729853281921,7.9772258,173.41,173.36,4.18]
[1729853282144,7.9772258,173.41,173.4,2.8853]
[1729853282714,4.18,173.46,173.37,7.9772258]
[1729853282715,4.18,173.45,173.37,7.9772258]
[1729853282935,7.9772258,173.42,173.37,7.9772258]
[1729853283928,7.9772258,173.42,173.41,2.8852]
[1729853286625,5.4291,173.47,173.44,2.8847]
[1729853286850,7.9772258,173.45,173.44,2.8847]
[1729853288720,7.9772258,173.45,173.44,13.25993497]
[1729853289119,2.86784414,173.51,173.44,10.37523497]
[1729853289120,2.8835,173.51,173.44,10.37523497]
[1729853289332,2.8835,173.51,173.48,2.884]
[1729853289333,4.18,173.5,173.48,2.884]
[1729853289531,7.9772258,173.49,173.48,2.884]
[1729853289727,7.9772258,173.49,173.48,4.32671293]
[1729853289920,7.9772258,173.49,173.48,9.39156279]
[1729853290321,7.9772258,173.49,173.48,6.50756279]
[1729853290624,7.9772258,173.49,173.47,2.8841]
[1729853290830,4.18,173.5,173.48,6.50578041]
[1729853291044,7.9772258,173.49,173.47,2.8841]
[1729853291225,7.9772258,173.49,173.48,6.50469971]
[1729853291462,4.18,173.51,173.48,6.50469971]
[1729853291630,7.9772258,173.49,173.42,7.9772258]
[1729853291976,7.9772258,173.47,173.43,10.36487026]
[1729853292231,7.9772258,173.47,173.44,10.36487026]
[1729853292440,7.9772258,173.46,173.45,10.36487026]
[1729853293837,7.9772258,173.46,173.45,6.50368232]
[1729853294249,7.9772258,173.46,173.45,2.8845]
[1729853294421,7.9772258,173.46,173.45,9.38910676]
[1729853296224,7.9772258,173.46,173.31,4.3293997]
[1729853296434,7.9772258,173.35,173.32,3.86455208]
[1729853296732,7.9772258,173.35,173.34,2.8863]
[1729853296923,7.9772258,173.35,173.34,6.75085208]
[1729853299630,7.9772258,173.35,173.34,3.86455208]
[1729853300036,7.9772258,173.35,173.3,1.263]
[1729853300239,7.9772258,173.31,173.3,4.15]
[1729853301126,7.9772258,173.32,173.31,2.8868]
[1729853303629,4.7259,173.45,173.3,9.2402258]
[1729853303841,2.8855,173.4,173.35,2.886]
[1729853304039,7.9772258,173.36,173.35,2.886]
[1729853308240,7.9772258,173.36,173.35,4.32937698]
[1729853309343,7.9772258,173.36,173.35,2.886]
[1729853309644,7.9772258,173.36,173.35,4.32936321]
[1729853310056,7.9772258,173.36,173.35,1.44336321]
[1729853310545,7.9772258,173.36,173.3,1.263]
[1729853310731,7.9772258,173.31,173.3,4.15]
[1729853311708,2.8857,173.38,173.33,2.8864]
[1729853311850,7.9772258,173.34,173.33,2.8864]
[1729853312147,7.9772258,173.34,173.23,12.1572258]
[1729853312349,7.9772258,173.28,173.23,14.99360635]
[1729853312643,7.9772258,173.28,173.24,3.7066]
[1729853313271,7.9772258,173.28,173.27,2.8875]
[1729853319553,2.8863,173.34,173.3,2.8869]
[1729853319753,4.18,173.36,173.27,12.1572258]
[1729853319954,7.9772258,173.33,173.27,12.1572258]
[1729853320251,7.9772258,173.33,173.32,2.8867]
[1729853321754,6.7545,173.37,173.34,2.8863]
[1729853321953,7.9772258,173.35,173.34,2.8863]
[1729853322556,7.9772258,173.35,173.34,4.32982618]
[1729853322951,7.9772258,173.35,173.34,2.8863]
[1729853323139,7.9772258,173.35,173.34,4.32981609]
[1729853326566,4.18,173.4,173.34,1.44351609]
[1729853326848,4.18,173.4,173.3,7.9772258]
[1729853326849,7.9772258,173.37,173.31,5.3553]
[1729853327045,7.9772258,173.37,173.32,1.44328559]
[1729853327251,7.9772258,173.37,173.36,2.886]
[1729853327459,7.9772258,173.37,173.36,4.32928559]
[1729853329952,7.9772258,173.37,173.36,2.886]
[1729853330857,7.9772258,173.37,173.36,4.32936698]
[1729853331047,10.8630258,173.37,173.33,2.8865]
[1729853331387,7.9772258,173.32,173.28,4.18]
[1729853331663,4.18,173.4,173.28,4.18]
[1729853331664,7.9772258,173.31,173.28,4.18]
[1729853332749,7.9772258,173.31,173.3,2.887]
[1729853333063,7.9772258,173.31,173.26,4.18]
[1729853333354,7.9772258,173.29,173.26,4.18]
[1729853333544,7.9772258,173.29,173.28,2.8873]
[1729853335249,4.18,173.34,173.32,2.8865]
[1729853335555,7.9772258,173.33,173.32,2.8865]
[1729853336554,1.226,173.43,173.31,7.9772258]
[1729853336762,7.9772258,173.38,173.32,12.1572258]
[1729853337778,2.5253,173.48,173.37,7.9772258]
[1729853337948,7.9772258,173.44,173.39,7.9772258]
[1729853338660,1.1941,173.57,173.42,7.9772258]
[1729853338959,7.9772258,173.48,173.42,12.1572258]
[1729853339756,7.9772258,173.48,173.46,2.8842]
[1729853339962,6.7295,173.56,173.47,7.9772258]
[1729853339963,2.5495,173.56,173.47,7.9772258]
[1729853340271,2.5495,173.56,173.5,2.8836]
[1729853340272,12.45471424,173.55,173.5,2.8836]
[1729853340860,62.32,173.67,173.46,12.45471424]
[1729853341118,12.45471424,173.58,173.53,2.883]
[1729853341869,12.45471424,173.6,173.51,4.18]
[1729853342156,7.1416,173.63,173.57,2.8825]
[1729853342362,12.45471424,173.62,173.57,2.8825]
[1729853342762,65.19826577,173.78,173.55,4.26]
[1729853343088,12.45471424,173.65,173.62,2.8816]
[1729853343363,12.45471424,173.65,173.59,4.26]
[1729853343868,12.45471424,173.65,173.63,2.8815]
[1729853345003,12.45471424,173.65,173.59,4.26]
[1729853345004,4.26,173.69,173.59,4.26]
[1729853345169,12.45471424,173.65,173.59,4.26]
[1729853346382,12.45471424,173.65,173.61,2.8818]
[1729853346564,12.45471424,173.65,173.59,4.26]
[1729853347291,12.45471424,173.65,173.6,2.882]
[1729853347461,15.33591424,173.65,173.59,4.26]
[1729853347666,16.58601424,173.65,173.58,4.24]
[1729853349470,16.58601424,173.65,173.59,2.8821]
[1729853353976,16.58601424,173.65,173.6,2.882]
[1729853356876,16.58601424,173.65,173.58,4.24]
[1729853357069,16.58601424,173.65,173.61,2.8818]
[1729853357477,2.8814,173.64,173.59,2.8821]
[1729853358078,12.45471424,173.63,173.59,2.8821]
[1729853358781,12.45471424,173.63,173.53,12.45471424]
[1729853358978,12.45471424,173.63,173.54,4.24]
[1729853359223,12.45471424,173.63,173.55,4.24]
[1729853359471,15.33631424,173.63,173.58,2.8823]
[1729853360174,15.33631424,173.63,173.51,12.45471424]
[1729853360471,12.45471424,173.61,173.56,2.8827]
[1729853361717,12.45471424,173.61,173.57,2.8825]
[1729853363691,12.45471424,173.61,173.45,1.2792]
[1729853363692,2.8825,173.57,173.52,2.8832]
[1729853363878,12.45471424,173.55,173.48,4.24]
[1729853364379,12.45471424,173.55,173.53,2.8831]
[1729853367780,13.70191424,173.57,173.53,2.8831]
[1729853370685,13.70191424,173.57,173.54,2.883]
[1729853372383,7.97853216,173.55,173.54,2.883]
[1729853373008,7.97853216,173.55,173.52,2.8832]
[1729853375197,7.97853216,173.55,173.5,2.8835]
[1729853375386,7.97853216,173.55,173.49,7.97853216]
[1729853377394,1.2472,173.57,173.54,2.883]
[1729853377585,7.97853216,173.56,173.54,2.883]
[1729853382289,9.22573216,173.57,173.54,2.883]
[1729853384614,7.97853216,173.56,173.54,2.883]
[1729853385913,10.86123216,173.56,173.53,2.8832]
[1729853386218,7.97853216,173.56,173.5,7.97853216]
[1729853386614,1.2002,173.59,173.48,4.24]
[1729853386812,1.2388,173.6,173.55,7.97853216]
[1729853387003,1.2388,173.6,173.58,2.8822]
[1729853387229,7.97853216,173.64,173.58,7.97853216]
[1729853387521,7.97853216,173.64,173.6,7.97853216]
[1729853387712,7.97853216,173.64,173.58,7.97853216]
[1729853388224,4.2,173.65,173.62,2.8816]
[1729853388451,7.97853216,173.64,173.62,2.8816]
[1729853389416,1.2206,173.67,173.61,7.97853216]
[1729853389620,7.97853216,173.66,173.61,7.97853216]
[1729853390023,7.97853216,173.66,173.63,2.8814]
[1729853390521,5.4206,173.67,173.61,7.97853216]
[1729853390813,7.97853216,173.65,173.61,7.97853216]
[1729853391613,9.5334,173.68,173.64,2.8813]
[1729853391983,7.97853216,173.66,173.64,2.8813]
[1729853393410,7.97853216,173.66,173.61,7.97853216]
[1729853393411,7.97853216,173.65,173.59,7.97853216]
[1729853393618,7.97853216,173.63,173.62,2.8816]
[1729853397229,1.2588,173.67,173.59,7.97853216]
[1729853397441,7.97853216,173.64,173.59,7.97853216]
[1729853398233,7.97853216,173.64,173.63,2.8815]
[1729853398525,7.97853216,173.64,173.59,7.97853216]
[1729853398919,7.97853216,173.64,173.62,2.8815]
[1729853399723,4.1397,173.67,173.61,2.8818]
[1729853399972,7.97853216,173.65,173.59,7.97853216]
[1729853400230,7.97853216,173.65,173.6,7.97853216]
[1729853401321,7.97853216,173.65,173.64,2.8812]
[1729853409323,2.8802,173.72,173.68,2.8806]
[1729853409624,7.97853216,173.7,173.68,2.8806]
[1729853410433,2.8802,173.72,173.68,2.8806]
[1729853410652,7.97853216,173.7,173.69,2.8804]
[1729853411234,2.8802,173.72,173.69,2.8804]
[1729853411535,7.97853216,173.71,173.69,2.8804]
[1729853411837,2.8799,173.73,173.62,6.5629]
[1729853412061,7.97853216,173.71,173.7,2.8803]
[1729853412506,4.18,173.74,173.71,2.8801]
[1729853412656,7.97853216,173.72,173.66,7.97853216]
[1729853413040,7.97853216,173.72,173.69,2.8804]
[1729853415445,10.85863216,173.72,173.69,2.8804]
[1729853415644,7.97853216,173.72,173.69,2.8804]
[1729853415836,7.97853216,173.72,173.7,2.8803]
[1729853417539,7.97853216,173.72,173.66,12.15853216]
[1729853417730,7.97853216,173.72,173.68,2.8805]
[1729853418241,10.85863216,173.72,173.68,2.8805]
[1729853418941,10.85863216,173.72,173.66,12.15853216]
[1729853419137,10.85863216,173.72,173.69,2.8805]
[1729853419340,10.85863216,173.72,173.66,12.15853216]
[1729853419558,10.85863216,173.72,173.68,2.8806]
[1729853419868,7.97853216,173.7,173.64,1.44099971]
[1729853420045,10.85893216,173.7,173.64,12.15853216]
[1729853420340,10.85893216,173.7,173.65,2.881]
[1729853420540,10.85893216,173.7,173.64,12.15853216]
[1729853420939,10.85893216,173.7,173.64,7.97853216]
[1729853422353,10.85893216,173.7,173.66,2.8809]
[1729853424256,7.97853216,173.68,173.62,1.2039]
[1729853424546,10.85923216,173.68,173.62,12.15853216]
[1729853425343,10.85923216,173.68,173.64,2.8812]
[1729853425744,2.8809,173.67,173.63,2.8814]
[1729853425948,7.97853216,173.66,173.63,2.8814]
[1729853426144,7.97853216,173.66,173.62,12.15853216]
[1729853426451,7.97853216,173.66,173.62,7.97853216]
[1729853426851,7.97853216,173.66,173.63,2.8815]
[1729853427367,7.97853216,173.66,173.64,2.8813]
[1729853429753,15.03903216,173.69,173.65,2.881]
[1729853430059,4.18,173.69,173.64,7.97853216]
[1729853430359,7.97853216,173.7,173.67,2.8807]
[1729853431079,7.97853216,173.7,173.68,2.8806]
[1729853431370,2.8803,173.71,173.68,2.8806]
[1729853431567,7.97853216,173.7,173.68,2.8806]
[1729853434006,2.5357,173.75,173.69,7.97853216]
[1729853434266,2.5357,173.75,173.62,1.2105]
[1729853434267,4.18,173.79,173.71,7.97853216]
[1729853434460,4.18,173.79,173.62,1.2105]
[1729853434461,7.97853216,173.77,173.72,7.97853216]
[1729853434660,7.97853216,173.77,173.75,2.8794]
[1729853434865,7.97853216,173.77,173.7,4.18]
[1729853435064,7.97853216,173.77,173.71,7.97853216]
[1729853435625,7.97853216,173.77,173.74,2.8795]
[1729853435631,236.6287,173.96,173.73,7.97853216]
[1729853435796,7.97853216,173.79,173.73,7.97853216]
[1729853435889,7.97853216,173.79,173.76,2.8793]
[1729853436379,7.97853216,173.79,173.77,2.8792]
[1729853436869,7.97853216,173.79,173.76,2.8793]
[1729853437184,2.8786,173.81,173.76,2.8793]
[1729853437386,7.97853216,173.79,173.76,2.8793]
[1729853439323,6.7433,173.86,173.79,2.8788]
[1729853439571,7.97853216,173.83,173.78,7.97853216]